bitfinex/quotes_BTCUSD_20240828
["timestamp","ask_amount","ask_price","bid_price","bid_amount"]
[1724870252981,0.507295,59137.0,59136.0,0.0805]
[1724870253195,0.169098,59137.0,59136.0,0.09253707]
[1724870253858,0.845492,59137.0,59136.0,0.09253707]
[1724870254100,0.845492,59137.0,59136.0,0.09053707]
[1724870254558,0.507295,59137.0,59136.0,0.09253707]
[1724870255560,0.846492,59137.0,59136.0,0.10053707]
[1724870255765,0.846492,59137.0,59136.0,0.02503707]
[1724870255766,1.185689,59137.0,59136.0,0.02503707]
[1724870255984,1.35324064,59137.0,59136.0,0.01503707]
[1724870256210,1.35324064,59137.0,59136.0,0.02203707]
[1724870256412,1.35424064,59137.0,59136.0,0.02503707]
[1724870256632,1.546886,59137.0,59136.0,0.01203707]
[1724870256864,1.647886,59137.0,59136.0,0.01203707]
[1724870257083,1.89913764,59137.0,59136.0,0.02503707]
[1724870257782,1.730586,59137.0,59136.0,0.02503707]
[1724870258235,2.02804224,59137.0,59136.0,0.02503707]
[1724870258449,2.02404224,59137.0,59136.0,0.02203707]
[1724870258662,2.02304224,59137.0,59136.0,0.01203707]
[1724870258903,2.02504224,59137.0,59136.0,0.01203707]
[1724870259172,2.02604224,59137.0,59136.0,0.01903707]
[1724870259392,2.19959388,59137.0,59136.0,0.01903707]
[1724870259622,2.19959388,59137.0,59136.0,0.01203707]
[1724870259623,2.19859388,59137.0,59136.0,0.01203707]
[1724870259837,2.19859388,59137.0,59136.0,0.01303707]
[1724870259838,1.95634224,59137.0,59136.0,0.01303707]
[1724870260062,1.635886,59137.0,59136.0,0.01303707]
[1724870261454,1.93334224,59137.0,59136.0,0.01303707]
[1724870261910,1.93334224,59137.0,59136.0,0.01393797]
[1724870262403,1.297689,59137.0,59136.0,0.01393797]
[1724870262617,1.297689,59137.0,59136.0,0.09183797]
[1724870263288,1.297689,59137.0,59136.0,0.09083797]
[1724870263289,1.290689,59137.0,59136.0,0.09083797]
[1724870263526,0.952492,59137.0,59136.0,0.09083797]
[1724870263751,0.514295,59137.0,59136.0,0.09283797]
[1724870263978,0.176098,59137.0,59136.0,0.09283797]
[1724870264185,0.514295,59137.0,59136.0,0.10489004]
[1724870265094,0.508295,59137.0,59136.0,0.11289004]
[1724870265584,0.001,59137.0,59136.0,1.35919004]
[1724870265826,0.001,59137.0,59136.0,1.35719004]
[1724870266051,0.002,59137.0,59136.0,1.36019004]
[1724870266277,0.171098,59137.0,59136.0,1.36019004]
[1724870267424,0.509295,59137.0,59136.0,1.36019004]
[1724870267637,1.48314524,59137.0,59136.0,1.28029004]
[1724870269391,1.82134224,59137.0,59136.0,1.28029004]
[1724870269599,1.82778823,59137.0,59136.0,1.28029004]
[1724870269813,2.02788823,59137.0,59136.0,1.28029004]
[1724870270453,2.02688823,59137.0,59136.0,1.27729004]
[1724870270727,2.04657625,59137.0,59136.0,1.27729004]
[1724870270990,2.04657625,59137.0,59111.0,0.00110799]
[1724870270991,1.86587,59112.0,59111.0,0.00110799]
[1724870271194,1.79108164,59112.0,59111.0,0.00110799]
[1724870271398,2.08853788,59112.0,59111.0,0.00110799]
[1724870271607,2.11153788,59112.0,59111.0,0.00110799]
[1724870271813,2.13807201,59112.0,59111.0,0.00110799]
[1724870272020,1.96952037,59112.0,59111.0,0.00110799]
[1724870272263,1.97152037,59112.0,59111.0,0.00110799]
[1724870272464,1.97952037,59112.0,59111.0,0.00110799]
[1724870272664,1.98052037,59112.0,59111.0,0.00210799]
[1724870272872,2.14907201,59112.0,59111.0,0.00210799]
[1724870273113,2.16307201,59112.0,59111.0,0.00210799]
[1724870273314,2.13807201,59112.0,59111.0,0.00110799]
[1724870273540,1.97952037,59112.0,59111.0,0.00210799]
[1724870273754,1.98752037,59112.0,59111.0,0.00210799]
[1724870273962,1.98619162,59112.0,59111.0,0.00210799]
[1724870274829,1.98619162,59112.0,59111.0,0.00110799]
[1724870274830,2.02381653,59112.0,59111.0,0.00110799]
[1724870275003,1.99019162,59112.0,59111.0,0.00210799]
[1724870275243,2.00419162,59112.0,59111.0,0.00210799]
[1724870275663,2.05687393,59112.0,59111.0,0.00110799]
[1724870275867,2.07287393,59112.0,59111.0,0.00210799]
[1724870276076,2.05187393,59112.0,59111.0,0.00210799]
[1724870276279,2.04287393,59112.0,59111.0,0.00110799]
[1724870276484,2.05087393,59112.0,59111.0,0.00110799]
[1724870276667,2.05287393,59112.0,59111.0,0.00210799]
[1724870276820,1.98619162,59112.0,59111.0,0.00210799]
[1724870277035,1.99319162,59112.0,59111.0,0.00210799]
[1724870278437,1.98319162,59112.0,59111.0,0.00110799]
[1724870278670,1.65385162,59112.0,59111.0,0.00210799]
[1724870280218,1.33339538,59112.0,59111.0,0.00210799]
[1724870280433,1.46673492,59112.0,59111.0,0.00210799]
[1724870280641,1.45973492,59112.0,59111.0,0.00210799]
[1724870280853,1.45073492,59112.0,59111.0,0.00110799]
[1724870281279,1.45473492,59112.0,59111.0,0.00110799]
[1724870281705,1.31272413,59112.0,59111.0,0.00110799]
[1724870281886,0.63404413,59112.0,59111.0,0.00110799]
[1724870282366,0.63404413,59112.0,59111.0,0.00310799]
[1724870282580,0.29670413,59112.0,59111.0,0.00110799]
[1724870282794,0.63504413,59112.0,59111.0,0.00410799]
[1724870283002,0.63504413,59112.0,59111.0,0.01532962]
[1724870283217,0.53504413,59112.0,59111.0,0.00110799]
[1724870283431,0.87438413,59112.0,59111.0,0.00410799]
[1724870283664,1.21272413,59112.0,59111.0,0.00410799]
[1724870283909,1.56538017,59112.0,59111.0,0.00410799]
[1724870284353,1.56638017,59112.0,59111.0,0.01010799]
[1724870284587,1.92772017,59112.0,59111.0,0.01010799]
[1724870284802,2.02572017,59112.0,59111.0,0.00110799]
[1724870285029,2.02672017,59112.0,59111.0,0.00110799]
[1724870285280,2.02772017,59112.0,59111.0,0.00410799]
[1724870285496,2.02572017,59112.0,59111.0,0.00110799]
[1724870285958,2.04740819,59112.0,59111.0,0.00110799]
[1724870286173,2.04340819,59112.0,59111.0,0.00110799]
[1724870286420,2.04740819,59112.0,59111.0,0.00110799]
[1724870286628,2.0539404,59112.0,59111.0,0.00110799]
[1724870287061,1.9977406,59112.0,59111.0,0.00110799]
[1724870287288,2.0007406,59112.0,59111.0,0.00110799]
[1724870287498,2.3410806,59112.0,59111.0,0.00110799]
[1724870288155,2.0027406,59112.0,59111.0,0.00110799]
[1724870288599,2.0007406,59112.0,59111.0,0.00110799]
[1724870288813,2.17529224,59112.0,59111.0,0.00110799]
[1724870289028,2.16529224,59112.0,59111.0,0.00110799]
[1724870289470,2.17529224,59112.0,59111.0,0.00110799]
[1724870289677,2.16529224,59112.0,59111.0,0.00110799]
[1724870290322,2.17429224,59112.0,59111.0,0.00110799]
[1724870290752,2.17629224,59112.0,59111.0,0.00110799]
[1724870290967,2.16729224,59112.0,59111.0,0.00110799]
[1724870292065,1.69628436,59112.0,59111.0,0.00110799]
[1724870292289,1.70528436,59112.0,59111.0,0.00110799]
[1724870292503,1.35794436,59112.0,59111.0,0.00110799]
[1724870292948,1.36594436,59112.0,59111.0,0.00110799]
[1724870293415,1.35794436,59112.0,59111.0,0.00110799]
[1724870293816,1.52747856,59112.0,59111.0,0.00110799]
[1724870294918,1.35994436,59112.0,59111.0,0.00110799]
[1724870295560,1.35994436,59112.0,59111.0,0.00100605]
[1724870296043,1.37051641,59112.0,59111.0,0.00100605]
[1724870296250,1.3639842,59112.0,59111.0,0.00100605]
[1724870296462,1.3649842,59112.0,59111.0,0.00100605]
[1724870296692,1.0036442,59112.0,59111.0,0.00100605]
[1724870297128,1.3419842,59112.0,59111.0,0.00100605]
[1724870297367,1.0036442,59112.0,59111.0,0.00100605]
[1724870297790,1.03017843,59112.0,59111.0,0.00100605]
[1724870298413,0.14604025,59112.0,59111.0,0.07960605]
[1724870298844,0.04604025,59112.0,59111.0,0.24877905]
[1724870299074,0.04604025,59112.0,59111.0,0.26200148]
[1724870299727,0.04504025,59112.0,59111.0,0.26200148]
[1724870299941,0.04604025,59112.0,59111.0,0.09282848]
[1724870300369,0.04604025,59112.0,59111.0,0.26200148]
[1724870300586,0.04604025,59112.0,59111.0,1.32721179]
[1724870300810,0.04604025,59112.0,59111.0,1.66555779]
[1724870301115,0.04604025,59112.0,59111.0,2.00390379]
[1724870301116,0.02835223,59112.0,59111.0,2.00390379]
[1724870302081,0.02735223,59112.0,59111.0,2.00390379]
[1724870302293,0.02735223,59112.0,59111.0,2.00990379]
[1724870302501,0.02835223,59112.0,59111.0,2.00990379]
[1724870307500,0.338198,59137.0,59131.0,0.169115]
[1724870307707,0.0886,59143.0,59130.0,0.66256431]
[1724870307708,0.1,59142.0,59130.0,0.66256431]
[1724870307917,0.0886,59143.0,59130.0,0.66256431]
[1724870307918,0.169114,59132.0,59130.0,0.66256431]
[1724870308326,0.507329,59134.0,59130.0,0.66256431]
[1724870308535,0.169113,59132.0,59130.0,0.66156431]
[1724870308959,0.169116,59131.0,59130.0,0.66156431]
[1724870309170,0.001,59132.0,59130.0,0.66756431]
[1724870309395,0.001,59132.0,59130.0,0.66156431]
[1724870309396,0.169116,59131.0,59130.0,0.66156431]
[1724870309854,0.169116,59131.0,59130.0,0.66756431]
[1724870310080,0.169116,59131.0,59130.0,0.66156431]
[1724870311748,0.507348,59131.0,59130.0,0.66156431]
[1724870311992,0.84558,59131.0,59130.0,0.67256431]
[1724870312247,1.42190967,59131.0,59130.0,0.66156431]
[1724870312519,1.44490967,59131.0,59130.0,0.66156431]
[1724870312739,1.88414167,59131.0,59130.0,0.67356431]
[1724870312984,1.88974315,59131.0,59130.0,0.66156431]
[1724870313242,0.845722,59121.0,59120.0,0.66156431]
[1724870313474,0.77834364,59131.0,59115.0,0.0629]
[1724870313475,0.169158,59116.0,59115.0,0.72446431]
[1724870313695,0.507475,59116.0,59115.0,0.72446431]
[1724870313946,0.845792,59116.0,59115.0,0.72446431]
[1724870314642,0.845792,59116.0,59115.0,0.66156431]
[1724870314888,1.184109,59116.0,59115.0,0.66156431]
[1724870315128,1.184109,59116.0,59115.0,0.67266071]
[1724870315589,1.184109,59116.0,59115.0,0.67966071]
[1724870315816,1.184109,59116.0,59115.0,0.67266071]
[1724870316330,1.184109,59116.0,59115.0,0.67566071]
[1724870316577,1.184109,59116.0,59115.0,0.67266071]
[1724870317929,1.189109,59116.0,59115.0,0.67266071]
[1724870319080,1.189109,59116.0,59115.0,0.0110964]
[1724870319309,1.184109,59116.0,59115.0,0.0110964]
[1724870319535,1.184109,59116.0,59109.0,0.74296431]
[1724870319536,0.84585,59112.0,59109.0,0.74296431]
[1724870320754,0.84585,59112.0,59111.0,0.08400605]
[1724870320989,0.84585,59112.0,59111.0,0.14720605]
[1724870321723,0.84585,59112.0,59111.0,0.15220605]
[1724870321943,0.84585,59112.0,59111.0,0.14720605]
[1724870322166,0.84685,59112.0,59111.0,0.15520605]
[1724870322412,0.84685,59112.0,59111.0,0.16633868]
[1724870323320,0.50851,59112.0,59111.0,0.16633868]
[1724870323546,0.17017,59112.0,59111.0,0.16833868]
[1724870324062,0.84685,59112.0,59111.0,0.16833868]
[1724870324535,0.50851,59112.0,59111.0,0.16833868]
[1724870325006,0.50851,59112.0,59111.0,0.82990299]
[1724870327520,0.53504165,59112.0,59111.0,0.82990299]
[1724870330728,0.87338165,59112.0,59111.0,0.82990299]
[1724870331683,0.87338165,59112.0,59111.0,0.76670299]
[1724870332160,0.53504165,59112.0,59111.0,0.76670299]
[1724870333619,0.19670165,59112.0,59111.0,0.76670299]
[1724870333846,0.53504165,59112.0,59111.0,0.76670299]
[1724870334554,0.53504165,59112.0,59111.0,0.75557036]
[1724870334797,0.53504165,59112.0,59111.0,0.76672734]
[1724870336661,0.02753165,59112.0,59111.0,1.33804634]
[1724870337138,0.02753165,59112.0,59111.0,1.67639234]
[1724870337391,0.02753165,59112.0,59111.0,1.33804634]
[1724870338095,0.02653165,59112.0,59111.0,1.33004634]
[1724870338341,0.02753165,59112.0,59111.0,1.34204634]
[1724870339558,0.02753165,59112.0,59111.0,1.00370034]
[1724870339657,0.02753165,59112.0,59111.0,1.34204634]
[1724870340237,0.02753165,59112.0,59111.0,1.00370034]
[1724870340443,0.02753165,59112.0,59111.0,1.34204634]
[1724870340681,1.98429759,59112.0,59111.0,0.02416303]
[1724870340896,1.96285932,59112.0,59111.0,0.02416303]
[1724870341086,1.96285932,59112.0,59104.0,0.00012]
[1724870341087,1.18433,59105.0,59104.0,0.00012]
[1724870341281,1.90550767,59105.0,59104.0,0.00012]
[1724870341496,1.26725,59094.0,59093.0,0.008998]
[1724870341701,2.00729067,59094.0,59093.0,0.008998]
[1724870341904,2.03029067,59094.0,59093.0,0.01925802]
[1724870342117,2.03029067,59094.0,59093.0,0.008998]
[1724870342398,2.03229067,59094.0,59093.0,0.008998]
[1724870342815,2.37073367,59094.0,59093.0,0.008998]
[1724870343019,2.37073367,59094.0,59093.0,0.017998]
[1724870343020,2.03329067,59094.0,59093.0,0.017998]
[1724870343221,2.05983224,59094.0,59093.0,0.017998]
[1724870344480,2.05883224,59094.0,59093.0,0.008998]
[1724870344695,2.06183224,59094.0,59093.0,0.008998]
[1724870344904,2.50264748,59094.0,59093.0,0.008998]
[1724870345138,2.45991267,59094.0,59093.0,0.008998]
[1724870345358,2.41327524,59094.0,59093.0,0.008998]
[1724870347482,2.41971828,59094.0,59093.0,0.008998]
[1724870349148,1.83317761,59094.0,59093.0,0.008998]
[1724870349395,1.75747761,59094.0,59093.0,0.008998]
[1724870350015,1.75947761,59094.0,59093.0,0.008998]
[1724870350718,1.92802925,59094.0,59093.0,0.008998]
[1724870351495,2.00922925,59094.0,59093.0,0.008998]
[1724870351733,2.05972273,59094.0,59093.0,0.008998]
[1724870352189,1.84067761,59094.0,59093.0,0.008998]
[1724870353398,1.68197761,59094.0,59093.0,0.008998]
[1724870355291,1.31409157,59094.0,59093.0,0.008998]
[1724870355510,1.33709157,59094.0,59093.0,0.008998]
[1724870355943,1.67553457,59094.0,59093.0,0.008998]
[1724870356819,1.784972,59094.0,59093.0,0.008998]
[1724870357047,1.69973324,59094.0,59093.0,0.008998]
[1724870357784,1.70874224,59094.0,59093.0,0.008998]
[1724870358000,1.71074224,59094.0,59093.0,0.008998]
[1724870358234,1.70874224,59094.0,59093.0,0.008998]
[1724870358484,1.71074224,59094.0,59093.0,0.008998]
[1724870359468,1.70874224,59094.0,59093.0,0.008998]
[1724870359693,1.70874224,59094.0,59093.0,0.085998]
[1724870359694,1.33177959,59094.0,59093.0,0.085998]
[1724870361147,0.99333659,59094.0,59093.0,0.085998]
[1724870361362,0.65489359,59094.0,59093.0,0.81336231]
[1724870361612,0.65489359,59094.0,59093.0,0.82376975]
[1724870361811,0.99333659,59094.0,59093.0,0.82376975]
[1724870362607,0.99033659,59094.0,59093.0,0.82376975]
[1724870362849,0.99033659,59094.0,59093.0,0.82676975]
[1724870363375,0.04422959,59094.0,59093.0,1.33444275]
[1724870363614,0.04422959,59094.0,59093.0,1.67289175]
[1724870364097,0.04422959,59094.0,59093.0,2.00834075]
[1724870364359,0.04422959,59094.0,59093.0,2.01134075]
[1724870364604,0.04422959,59094.0,59093.0,2.00834075]
[1724870365014,0.04522959,59094.0,59093.0,2.01134075]
[1724870365286,0.04522959,59094.0,59093.0,2.00834075]
[1724870365727,0.04522959,59094.0,59093.0,1.33144275]
[1724870365958,0.04522959,59094.0,59093.0,1.66989175]
[1724870366258,0.04622959,59094.0,59093.0,1.67289175]
[1724870367199,0.04622959,59094.0,59093.0,1.33444275]
[1724870367423,0.04622959,59094.0,59093.0,1.67289175]
[1724870367649,0.04422959,59094.0,59093.0,1.66989175]
[1724870367895,0.04522959,59094.0,59093.0,1.33944275]
[1724870368121,0.04522959,59094.0,59093.0,1.33144275]
[1724870368569,0.04622959,59094.0,59093.0,1.33944275]
[1724870368763,0.04622959,59094.0,59093.0,1.67789175]
[1724870369452,0.02654157,59094.0,59093.0,1.66989175]
[1724870370846,0.02754157,59094.0,59093.0,1.67489175]
[1724870371317,0.02654157,59094.0,59093.0,1.66989175]
[1724870371562,0.02754157,59094.0,59093.0,1.67489175]
[1724870371801,0.02754157,59094.0,59093.0,2.00834075]
[1724870372265,0.02854157,59094.0,59093.0,2.01334075]
[1724870373396,0.02854157,59094.0,59093.0,2.01534075]
[1724870373895,0.02654157,59094.0,59093.0,2.01034075]
[1724870374136,0.02754157,59094.0,59093.0,2.01534075]
[1724870374413,0.02754157,59094.0,59093.0,2.01034075]
[1724870374653,0.02854157,59094.0,59093.0,2.01534075]
[1724870375312,0.02854157,59094.0,59093.0,2.35378975]
[1724870375552,0.01768802,59103.0,59102.0,0.991795]
[1724870375786,0.01768802,59103.0,59102.0,0.993795]
[1724870376001,0.01768802,59103.0,59102.0,1.332193]
[1724870376265,1.88184402,59103.0,59102.0,0.01028038]
[1724870376534,1.88184402,59103.0,59102.0,0.0131001]
[1724870376535,1.2882654,59103.0,59102.0,0.0131001]
[1724870376761,1.2882654,59103.0,59097.0,0.002]
[1724870376762,0.11768802,59103.0,59097.0,0.002]
[1724870376979,0.16921,59098.0,59097.0,0.002]
[1724870377421,0.338399,59102.0,59097.0,0.002]
[1724870377865,0.01868802,59103.0,59100.0,0.002]
[1724870377866,0.01768802,59103.0,59100.0,0.002]
[1724870378131,0.52827602,59103.0,59102.0,0.002]
[1724870378595,0.02068802,59103.0,59102.0,0.0784]
[1724870379041,0.18988402,59103.0,59102.0,0.0784]
[1724870379274,0.52827602,59103.0,59102.0,0.0784]
[1724870380235,0.52527602,59103.0,59102.0,0.0784]
[1724870380463,0.01868802,59103.0,59102.0,0.0844]
[1724870380688,0.01868802,59103.0,59102.0,0.647797]
[1724870380903,0.01868802,59103.0,59102.0,0.992195]
[1724870380904,0.001,59103.0,59102.0,0.992195]
[1724870381124,0.002,59103.0,59102.0,0.992195]
[1724870381348,0.001,59103.0,59102.0,0.315399]
[1724870381641,0.002,59103.0,59102.0,0.321399]
[1724870381839,0.002,59103.0,59102.0,0.653797]
[1724870382088,0.000818,59104.0,59103.0,0.84598]
[1724870382323,0.000818,59104.0,59103.0,0.92678]
[1724870382552,0.000818,59104.0,59103.0,0.93989545]
[1724870382988,0.02735095,59104.0,59103.0,0.93989545]
[1724870383224,0.02735095,59104.0,59103.0,0.93889545]
[1724870383692,0.000818,59104.0,59103.0,0.93889545]
[1724870383927,0.001818,59104.0,59103.0,0.94489545]
[1724870384217,0.000818,59104.0,59103.0,0.93889545]
[1724870384461,0.000818,59104.0,59103.0,1.60645976]
[1724870384462,0.001818,59104.0,59103.0,1.60645976]
[1724870385244,0.02835085,59104.0,59103.0,1.60645976]
[1724870385659,1.19561352,59104.0,59103.0,0.01911545]
[1724870385667,1.55699952,59104.0,59103.0,0.01911545]
[1724870385907,1.89538552,59104.0,59103.0,0.01911545]
[1724870386168,1.89538552,59104.0,59103.0,0.006]
[1724870386400,2.00205128,59104.0,59103.0,0.006]
[1724870386883,0.169221,59094.0,59093.0,0.008998]
[1724870387110,0.338405,59101.0,59093.0,0.010998]
[1724870387337,0.169221,59094.0,59093.0,0.02281495]
[1724870387588,0.169221,59094.0,59093.0,0.010998]
[1724870387589,0.507664,59094.0,59093.0,0.010998]
[1724870387837,0.507664,59094.0,59093.0,0.02281495]
[1724870388559,0.507664,59094.0,59093.0,0.010998]
[1724870389031,0.53420381,59094.0,59093.0,0.010998]
[1724870389278,0.19576081,59094.0,59093.0,0.010998]
[1724870389538,0.87264681,59094.0,59093.0,0.010998]
[1724870390239,0.53420381,59094.0,59093.0,0.010998]
[1724870390482,0.53520381,59094.0,59093.0,0.67756231]
[1724870390714,0.19676081,59094.0,59093.0,0.74776231]
[1724870390958,0.19676081,59094.0,59093.0,0.7596063]
[1724870390959,0.02753981,59094.0,59093.0,0.7596063]
[1724870391175,0.19676081,59094.0,59093.0,0.7646063]
[1724870391412,0.02853981,59094.0,59093.0,0.9994303]
[1724870391639,0.02853981,59094.0,59093.0,1.3378793]
[1724870391871,0.002,59094.0,59093.0,1.6763283]
[1724870392122,0.338363,59109.0,59096.0,0.338427]
[1724870392392,0.338363,59109.0,59099.0,0.169206]
[1724870392393,0.169194,59104.0,59099.0,0.169206]
[1724870392620,0.169196,59103.0,59099.0,0.169206]
[1724870392892,0.338363,59109.0,59097.0,0.35026377]
[1724870393241,0.01768802,59111.0,59110.0,0.001]
[1724870393391,0.50540786,59129.0,59128.0,0.0762]
[1724870393609,0.000818,59130.0,59129.0,0.170121]
[1724870393818,0.000818,59130.0,59129.0,0.51174605]
[1724870394038,0.02733952,59130.0,59129.0,1.20002908]
[1724870394259,0.02733952,59130.0,59129.0,1.27084703]
[1724870394467,0.15205271,59158.0,59143.0,0.16908]
[1724870394468,0.169066,59149.0,59143.0,0.16908]
[1724870394672,0.169068,59148.0,59144.0,0.73594631]
[1724870394890,0.169068,59148.0,59144.0,0.7477238]
[1724870395314,0.3381,59155.0,59144.0,0.7477238]
[1724870395529,0.338109,59153.0,59144.0,0.7477238]
[1724870395746,0.169059,59151.0,59144.0,0.9168008]
[1724870395977,0.507164,59153.0,59146.0,0.169072]
[1724870396187,0.169048,59155.0,59149.0,0.169064]
[1724870396403,0.169048,59155.0,59147.0,0.403739]
[1724870396404,0.16987,59154.0,59147.0,0.24537125]
[1724870396617,0.16987,59154.0,59150.0,0.0106997]
[1724870396618,0.010819,59154.0,59150.0,0.0106997]
[1724870396827,0.7,59151.0,59147.0,0.0656]
[1724870397093,0.7,59151.0,59116.0,0.0791]
[1724870397094,0.169153,59118.0,59116.0,0.0791]
[1724870397370,0.005,59143.0,59125.0,0.50540786]
[1724870397371,0.16913,59126.0,59125.0,0.50540786]
[1724870397592,0.04775958,59132.0,59116.0,0.0791]
[1724870397593,0.338253,59128.0,59116.0,0.0791]
[1724870397809,0.169156,59117.0,59116.0,0.0791]
[1724870398019,0.11065958,59132.0,59116.0,0.0791]
[1724870398020,0.338236,59131.0,59116.0,0.0791]
[1724870398237,0.16914,59123.0,59116.0,0.248257]
[1724870398459,0.338265,59126.0,59116.0,0.248257]
[1724870398460,0.169142,59122.0,59116.0,0.248257]
[1724870398903,0.169137,59124.0,59118.0,0.169151]
[1724870399117,0.001,59118.0,59116.0,0.255256]
[1724870399334,0.001,59118.0,59117.0,0.169156]
[1724870400175,0.169141,59122.0,59117.0,0.169156]
[1724870400380,0.169139,59123.0,59118.0,0.168153]
[1724870400602,0.1,59130.0,59116.0,0.0861]
[1724870400603,0.438239,59130.0,59116.0,0.0861]
[1724870400864,0.082,59134.0,59116.0,0.0861]
[1724870400865,0.169126,59128.0,59122.0,0.16914]
[1724870401074,0.169129,59127.0,59121.0,0.169144]
[1724870401529,0.169131,59126.0,59121.0,0.169144]
[1724870401746,0.169122,59129.0,59124.0,0.169134]
[1724870401962,0.169125,59128.0,59119.0,0.3383]
[1724870402179,0.169128,59127.0,59122.0,0.16814]
[1724870402612,0.169128,59127.0,59123.0,0.01453867]
[1724870402832,0.082,59134.0,59123.0,0.01792132]
[1724870403057,0.082,59134.0,59113.0,0.29905357]
[1724870403058,0.02652561,59126.0,59125.0,0.169133]
[1724870403262,0.169097,59138.0,59133.0,0.169109]
[1724870403481,0.169097,59138.0,59131.0,0.33823]
[1724870403482,0.169099,59137.0,59134.0,0.66074631]
[1724870403698,0.477249,59146.0,59134.0,0.66074631]
[1724870403699,0.169104,59135.0,59134.0,0.6752646]
[1724870403908,0.169101,59137.0,59134.0,0.6752646]
[1724870404055,0.169102,59136.0,59134.0,0.6712646]
[1724870404468,0.338178,59141.0,59134.0,0.6712646]
[1724870404469,0.169095,59139.0,59134.0,0.8403686]
[1724870404667,0.338178,59141.0,59135.0,0.169103]
[1724870404668,0.1,59138.0,59135.0,0.169103]
[1724870404867,0.1,59138.0,59134.0,1.0094756]
[1724870405068,0.1,59138.0,59136.0,0.0145121]
[1724870405284,0.1,59138.0,59135.0,0.01449752]
[1724870405285,0.169101,59136.0,59135.0,0.01449752]
[1724870405483,0.169104,59135.0,59134.0,0.65774631]
[1724870405745,0.507313,59135.0,59134.0,0.65774631]
[1724870406065,0.845522,59135.0,59134.0,0.65674631]
[1724870406267,1.183731,59135.0,59134.0,0.65774631]
[1724870406471,0.845522,59135.0,59134.0,0.65674631]
[1724870406888,0.850522,59135.0,59134.0,0.65674631]
[1724870407656,0.005,59135.0,59134.0,0.65674631]
[1724870407861,0.03152266,59135.0,59134.0,1.64518131]
[1724870408692,0.02652266,59135.0,59134.0,1.64518131]
[1724870409468,0.02652266,59135.0,59134.0,1.65718131]
[1724870409469,0.02752266,59135.0,59134.0,1.65718131]
[1724870409675,0.000818,59138.0,59137.0,0.845492]
[1724870409869,0.000818,59138.0,59137.0,1.263989]
[1724870410552,0.000818,59138.0,59137.0,1.92073531]
[1724870411605,0.000818,59138.0,59137.0,1.91973531]
[1724870412261,0.001818,59138.0,59137.0,1.93273531]
[1724870412467,0.001818,59138.0,59137.0,1.94727094]
[1724870414157,0.000819,59154.0,59144.0,0.84538]
[1724870414357,0.000819,59154.0,59147.0,0.33814]
[1724870414569,0.000819,59154.0,59153.0,0.169053]
[1724870414771,0.000819,59154.0,59153.0,0.507159]
[1724870414982,0.000819,59154.0,59153.0,0.169053]
[1724870415189,0.000819,59154.0,59153.0,0.1835238]
[1724870415397,0.000819,59154.0,59153.0,0.5216298]
[1724870416330,0.000819,59154.0,59153.0,0.5256298]
[1724870416984,0.000819,59154.0,59153.0,0.1875238]
[1724870417393,0.000819,59154.0,59153.0,0.5256298]
[1724870417813,0.02733151,59154.0,59153.0,0.1875238]
[1724870419241,0.19638151,59154.0,59153.0,0.0184708]
[1724870419774,0.53448151,59154.0,59153.0,0.0184708]
[1724870420036,0.19638151,59154.0,59153.0,0.0184708]
[1724870420250,0.19638151,59154.0,59153.0,0.65892831]
[1724870420488,0.19638151,59154.0,59153.0,0.6733937]
[1724870420714,0.02733151,59154.0,59153.0,0.6733937]
[1724870420939,0.19638151,59154.0,59153.0,0.6733937]
[1724870421846,0.19638151,59154.0,59153.0,0.8424467]
[1724870421847,0.02733151,59154.0,59153.0,0.8424467]
[1724870422079,0.02733151,59154.0,59153.0,1.5186587]
[1724870422314,0.02733151,59154.0,59153.0,1.5944587]
[1724870422563,0.02733151,59154.0,59153.0,1.2563527]
[1724870423013,0.02733151,59154.0,59153.0,1.6582587]
[1724870424963,0.02733151,59154.0,59153.0,1.6542587]
[1724870425678,0.02733151,59154.0,59153.0,1.6642587]
[1724870425905,0.02733151,59154.0,59153.0,1.6542587]
[1724870426374,0.02733151,59154.0,59153.0,1.6682587]
[1724870426852,0.02733151,59154.0,59153.0,1.3301527]
[1724870427074,0.19638151,59154.0,59153.0,0.6833937]
[1724870427319,0.37140676,59154.0,59153.0,0.02846539]
[1724870427547,2.300254,59154.0,59153.0,0.02846539]
[1724870427790,2.300254,59154.0,59153.0,0.014]
[1724870428038,2.300254,59154.0,59127.0,0.169124]
[1724870428039,0.338209,59135.0,59127.0,0.169124]
[1724870428289,0.169116,59131.0,59126.0,0.169128]
[1724870428533,0.169116,59131.0,59127.0,0.169127]
[1724870428795,0.169116,59131.0,59125.0,0.338264]
[1724870428796,0.02652134,59130.0,59128.0,0.169124]
[1724870429071,0.02652134,59130.0,59126.0,0.338258]
[1724870429072,0.02652134,59130.0,59126.0,0.169128]
[1724870429299,0.02652134,59130.0,59124.0,0.0784]
[1724870429538,0.02652134,59130.0,59128.0,0.169124]
[1724870430046,0.02652134,59130.0,59124.0,0.0784]
[1724870430047,0.02652134,59130.0,59129.0,0.169121]
[1724870430297,0.02652134,59130.0,59127.0,0.338253]
[1724870430298,0.02652134,59130.0,59127.0,0.169124]
[1724870430530,0.02652134,59130.0,59125.0,0.338262]
[1724870430531,0.02652134,59130.0,59128.0,0.169123]
[1724870430987,0.02652134,59130.0,59127.0,0.338253]
[1724870431231,0.02652134,59130.0,59129.0,0.169121]
[1724870432588,0.02652134,59130.0,59129.0,0.521364]
[1724870433010,0.02652134,59130.0,59129.0,0.183121]
[1724870433446,0.02652134,59130.0,59129.0,0.521364]
[1724870434418,0.02652134,59130.0,59129.0,0.507364]
[1724870434657,0.02652134,59130.0,59129.0,0.521364]
[1724870434903,0.02652134,59130.0,59129.0,0.507364]
[1724870435151,0.02652134,59130.0,59129.0,0.521364]
[1724870436113,0.36475834,59130.0,59129.0,0.014]
[1724870436365,1.35625034,59130.0,59129.0,0.014]
[1724870437580,0.169141,59122.0,59121.0,0.0008998]
[1724870437832,0.169138,59124.0,59121.0,0.0008998]
[1724870438066,0.169139,59123.0,59121.0,0.01495586]
[1724870438330,0.169139,59123.0,59122.0,0.0140549]
[1724870439039,0.02652638,59124.0,59123.0,0.169138]
[1724870439780,0.02652638,59124.0,59123.0,0.18319174]
[1724870440958,0.02652638,59124.0,59123.0,0.52146874]
[1724870441418,0.02652638,59124.0,59123.0,0.58786874]
[1724870441654,0.02652638,59124.0,59123.0,0.94014574]
[1724870442861,0.02652638,59124.0,59123.0,1.27842274]
[1724870443090,0.02652638,59124.0,59123.0,0.94104554]